{"text_format":"1","workbook":"xlsx","n_sheets":3,"sheets":["control","Base Processo","Revisão Energética"],"not_rendered":{"charts":0,"images":1,"macros":1,"external_links":0,"defined_names":38,"comments":1,"pivot_tables":0},"unopened":[],"bounds":{"document_bytes":16777216,"sheet_cells":100000,"rows_first":2000,"rows_last":500,"rows_between":2000,"halvings":0,"cell_chars":16384,"cell_head_chars":4096},"cells_cut":0,"cells_raw":0,"read":"whole","date_system":"1900"}

{"sheet":"control","index":0,"n_rows":73,"n_cols":14,"rows_kept":73,"cut":false,"hidden":true,"merged":[]}
[]
[]
[null,"criou processo principal",0,null,"parceirochave","Oportunidade","Contexto da org. Parceiros Chave",1,null,null,null,"riscos e oportunidades"]
[null,"criou processo de apoio",0,null,"atividadeschave","Oportunidade","Contexto da org.  Atividades Chave",1,null,null,null,"Ação Corretiva","Aceitar","Risco"]
[null,null,null,null,"propostadevalor","Oportunidade","Contexto da org.  Proposta de valor",1,null,null,null,"Análise Crítica","Atuar","Oportunidade"]
[null,"criar mapas",0,null,"relacionamento","Oportunidade","Contexto da org.  Relacionamento",1,null,null,null,"Auditoria Externa"]
[null,null,null,null,"segmentodecliente","Oportunidade","Contexto da org.  Segmento do Cliente",1]
[null,null,null,null,"recursoschave","Oportunidade","Contexto da org.  Recursos Chave",1]
[null,"Chuva/ Seca",null,null,"canais","Oportunidade","Contexto da org.  Canais",1,null,null,null,"LAIA",null,"Não Conformidade"]
[null,"Fauna",null,null,"relacionamento","Oportunidade","Contexto da org.  Relacionamento\"",1,null,null,null,"Negativo",null,"Aceitar"]
[null,"Flora",null,null,"custos","Oportunidade","Contexto da org.  Custos\"",4,null,null,null,"Positivo",null,"Atuar"]
[null,"Geologia",null,null,"receitas","Oportunidade","Contexto da org.  Receitas",4]
[null,"Localização",null,null,null,null,null,null,null,null,null,"Direta",null,"Ação Corretiva"]
[null,"Poluição",null,null,null,null,null,null,null,null,null,"Indireta",null,"Análise Crítica"]
[null,"Populações tradicionais",null,null,"parceirochave","Risco","Contexto da org. Parceiros Chave",1,null,null,null,null,null,"Auditoria Externa"]
[null,"Proximidade do mar",null,null,"atividadeschave","Risco","Contexto da org.  Atividades Chave",1,null,null,null,"sim",null,"Auditoria Interna"]
[null,"Proximidade do rio",null,null,"propostadevalor","Risco","Contexto da org.  Proposta de valor",1,null,null,null,"não",null,"Indicadores"]
[null,"Radiação solar",null,null,"relacionamento","Risco","Contexto da org.  Relacionamento",1,null,null,null,null,null,"Objetivos Estratégicos"]
[null,"Recursos Naturais",null,null,"segmentodecliente","Risco","Contexto da org.  Segmento do Cliente",1,null,null,null,"Normal",null,"Operação"]
[null,"Solo",null,null,"recursoschave","Risco","Contexto da org.  Recursos Chave",1,null,null,null,"Anormal",null,"Oportunidade"]
[null,"Temperatura",null,null,"canais","Risco","Contexto da org.  Canais",1,null,null,null,"Emergencial",null,"Planejamento de Mudanças"]
[null,"Topografia",null,null,"relacionamento","Risco","Contexto da org.  Relacionamento\"",1,null,null,null,null,null,"Reclamação de Clientes"]
[null,"Vento",null,null,"custos","Risco","Contexto da org.  Custos\"",4,null,null,null,null,null,"Recursos"]
[null,null,null,null,"receitas","Risco","Contexto da org.  Receitas",4,null,null,null,null,null,"Risco"]
[]
[null,"Análise de Riscos / Seguro"]
[null,"Aproveitamento da vegetação nativa"]
[null,"Arquitetura integrada à paisagem"]
[null,"Atendimento à legislação"]
[null,"Captação de águas pluviais"]
[null,"Conservação de áreas naturais"]
[null,"Destinação adequda de efluentes líquidos"]
[null,"Dispositivos para economia de água"]
[null,"Iluminação natural"]
[null,"Impermeabilização do solo"]
[null,"Isolamento térmico"]
[null,"Lâmpadas econômicas"]
[null,"Monitoramento da emissão de gases"]
[]
[null,"Monitoramento da emissão de odores"]
[null,"Monitoramento da emissão de ruídos"]
[null,"Monitoramento do consumo de água"]
[null,"Não manter animais em cativeiros"]
[null,"PGRS"]
[null,"Plano de Emergência"]
[null,"Poluição visual"]
[null,"Preservação da paisagem local"]
[null,"Programas ambientais"]
[null,"Programas de manutenção para veículos e equipamentos com explosão"]
[null,"Proteção da flora e fauna"]
[null,"Proteção de APP´s"]
[null,"Tratamento de águas residuais"]
[null,"Utilização de CFC"]
[null,"Utilização de combustíveis com menores impactos ambientais"]
[null,"Utilização de materiais de fontes sustentáveis"]
[null,"Ventilação natural"]
[]
[]
[]
[]
[]
[null,"Limpeza"]
[null,"Industrial"]
[null,"Serviços de Saúde"]
[null,"Construção Civil"]
[null,"Agricultura"]
[null,"Serviços de Transporte"]
[null,"Mineração"]
[]
[]
[null,"Classe I - Perigosos"]
[null,"Classe II - Não inertes"]
[null,"Classe II - Inertes"]

{"sheet":"Base Processo","index":1,"n_rows":32,"n_cols":15,"rows_kept":32,"cut":false,"hidden":true,"merged":[[7,10,7,14],[4,2,7,4],[3,2,3,4],[3,10,3,14],[1,3,1,9],[1,11,1,16],[4,10,4,14],[5,10,5,14],[6,10,6,14]]}
[]
[null,"Processo:",null,null,null,null,null,null,null,null,"Responsável:"]
[]
[null,null,"Objetivo do Processo",null,null,null,null,null,null,null,"Monitoramento do Processo"]
[]
[]
[]
[]
[]
[]
[]
[null,null,null,null,"Processo Anterior",null,null,null,null,null,"Próximo Processo"]
[]
[]
[]
[]
[]
[null,null,"Equipamentos e Recursos",null,"Entradas",null,null,"Atividades Principais",null,null,"Saídas",null,null,null,"Requisitos de Saída "]
[null,null,"(equipamentos, máquinas, softwares e recursos)",null,"(materiais, informações, recursos, requisições)",null,null,"(atividades chave do processo)",null,null,"(materiais, informações, recursos, requisições)",null,null,null,"(conformidade da saída)"]
[]
[]
[]
[]
[]
[]
[]
[]
[]
[]
[]
[null,null,"Riscos",null,"Oportunidades",null,null,"Propriedade Externa",null,null,"Conhecimentos",null,null,null,"Documentos Aplicáveis"]
[null,null,"(riscos associados a este processo)",null,"(oportunidades deste processo)",null,null,"(propriedade do cliente ou fornecedor que fica na organizazção ou é incorporado no produto)",null,null,"(conhecimentos específicos necessários para o processo)",null,null,null,"(leis, normas e regulamentos necesssarios ao processo)"]

{"sheet":"Revisão Energética","index":2,"n_rows":115,"n_cols":14,"rows_kept":115,"cut":false,"hidden":false,"merged":[[25,2,25,7],[24,1,24,14],[1,1,1,14],[16,1,16,14],[19,8,19,10],[20,5,20,7],[20,8,20,10],[21,5,21,7],[21,8,21,10],[22,5,22,7],[22,8,22,10],[17,2,17,4],[18,2,18,4],[19,2,19,4],[20,2,20,4],[21,2,21,4],[22,2,22,4],[18,5,18,7],[18,8,18,10],[19,5,19,7],[2,1,13,14],[33,2,33,7],[34,2,34,7],[35,2,35,7],[36,2,36,7],[37,2,37,7],[38,2,38,7],[26,2,26,7],[27,2,27,7],[28,2,28,7],[29,2,29,7],[30,2,30,7],[32,1,32,14],[44,13,44,14],[45,13,45,14],[44,8,44,12],[45,8,45,12],[33,8,33,12],[34,8,34,12],[35,8,35,12],[36,8,36,12],[37,8,37,12],[38,8,38,12],[97,2,97,7],[97,8,97,12],[97,13,97,14],[98,2,98,7],[98,8,98,12],[98,13,98,14],[99,2,99,7],[99,8,99,12],[99,13,99,14],[94,2,94,7],[94,8,94,12],[94,13,94,14],[95,2,95,7],[95,8,95,12],[95,13,95,14],[96,2,96,7],[96,8,96,12],[62,1,62,14],[63,1,63,14],[64,1,64,14],[96,13,96,14],[89,1,89,14],[54,2,54,7],[54,8,54,12],[55,2,55,7],[55,8,55,12],[56,2,56,7],[56,8,56,12],[61,1,61,14],[65,1,88,14],[93,1,93,14],[58,1,58,14],[59,1,59,14],[15,1,15,14],[48,1,48,14],[50,1,50,14],[51,2,51,7],[51,8,51,12],[52,2,52,7],[52,8,52,12],[53,2,53,7],[53,8,53,12],[46,13,46,14],[46,2,46,7],[46,8,46,12],[40,1,40,14],[41,2,41,7],[42,2,42,7],[43,2,43,7],[44,2,44,7],[45,2,45,7],[41,13,41,14],[42,13,42,14],[43,13,43,14],[41,8,41,12],[42,8,42,12],[43,8,43,12],[14,1,14,14],[91,1,91,14],[109,13,109,14],[110,13,110,14],[111,13,111,14],[105,2,105,7],[105,8,105,12],[105,13,105,14],[106,2,106,7],[106,8,106,12],[106,13,106,14],[107,2,107,7],[107,8,107,12],[107,13,107,14],[101,1,101,14],[102,2,102,7],[102,8,102,12],[102,13,102,14],[103,2,103,7],[103,8,103,12],[103,13,103,14],[104,2,104,7],[104,8,104,12],[104,13,104,14],[109,2,109,3],[109,11,109,12],[109,4,109,10],[110,2,110,3],[111,2,111,3],[112,2,112,3],[113,2,113,3],[114,2,114,3],[110,4,110,10],[110,11,110,12],[111,4,111,10],[111,11,111,12],[112,4,112,10],[112,11,112,12],[113,4,113,10],[113,11,113,12],[114,4,114,10],[114,11,114,12],[112,13,112,14],[113,13,113,14],[114,13,114,14]]}
[]
[null,"Eficiência Energética | Através do diagnóstico do perfil energético da empresa, é possível estabelecer ações de melhoria promovendo a Eficiência Energética, conforme desenho esquemático abaixo."]
[]
[]
[]
[]
[]
[]
[]
[]
[]
[]
[]
[]
[null,"Para promover a Eficiência Energética, é necessário identificar o perfil energético atual (PASSO 1), analisar este perfil energético, identificando as variáveis energéticas que realmente influenciam o desempenho energético,  e prever o consumo de energia pela linha de base energética (PASSO 2) e gerar um plano de ação com objetivos e metas que promovam a Eficiência Energética (PASSO 3)"]
[null,"PASSO 1"]
[null,"Identificação das Fontes Energéticas | origem da energia (listar as 5 principais fontes de energia em ordem decrescente)"]
[null,"ITEM","Tipo de Fonte de Energia",null,null,null,"Origem da Fonte de Energia",null,null,"Representatividade (%)"]
[null,1]
[null,2]
[null,3]
[null,4]
[null,5]
[]
[null,"Identificação do Uso da Energia | local ou processo onde a energia é utilizada (listar os 5 principais locais ou processos em ordem descrescente)"]
[null,"ITEM","Uso da Energia"]
[null,1]
[null,2]
[null,3]
[null,4]
[null,5]
[]
[null,"Consumo da Energia | Valor usado de energia (listar os 5 principais equipamentos consumidores em ordem decrescente)"]
[null,"ITEM","Local (ou equipamento) do Consumo da Energia",null,null,null,null,null,"Valor do Consumo de Energia (kwh)"]
[null,1]
[null,2]
[null,3]
[null,4]
[null,5]
[]
[null,"Variáveis Energéticas | variáveis que influenciam no consumo de energia (descrever as variáveis energéticas que influenciam diretamente o consumo de energia)"]
[null,"ITEM","Local (ou equipamento) do Consumo da Energia",null,null,null,null,null,"Valor do Consumo de Energia (kwh)",null,null,null,null,"Variável Energética"]
[null,1,{"$f":"C35","v":0},null,null,null,null,null,{"$f":"I35","v":0}]
[null,2,{"$f":"C36","v":0},null,null,null,null,null,{"$f":"I36","v":0}]
[null,3,{"$f":"C37","v":0},null,null,null,null,null,{"$f":"I37","v":0}]
[null,4,{"$f":"C38","v":0},null,null,null,null,null,{"$f":"I38","v":0}]
[null,5,{"$f":"C39","v":0},null,null,null,null,null,{"$f":"I39","v":0}]
[]
[null,"PASSO 2"]
[]
[null,"Uso Significativo da Energia | Valor usado de energia"]
[null,"ITEM","Local (ou equipamento) do Consumo da Energia",null,null,null,null,null,"Valor do Consumo de Energia (kwh)"]
[null,1,{"$f":"C43","v":0},null,null,null,null,null,{"$f":"I43","v":0}]
[null,2,{"$f":"C44","v":0},null,null,null,null,null,{"$f":"I44","v":0}]
[null,3,0,null,null,null,null,null,0]
[null,4,0,null,null,null,null,null,0]
[null,5,0,null,null,null,null,null,0]
[]
[null,"Coleta de Dados | registro das variáveis energéticas e do consumo de energia"]
[null,"Reuna em uma planilha de EXCEL, os valores mensais dos últimos cinco anos das 5 principais variáveis energéticas ( associadas ao uso significativo de energia ) e do consumo de energia, e determine a influência da variável no consumo de energia através de regressões matemáticas. É importante lembrar que o intervalo de confiança da regressão matemática deve ser superior a 99%."]
[]
[null,"Linha de Base Energética | variáveis que influenciam no consumo de energia (equação matemática que preve o consumo de energia em função das variáveis energéticas significativas (que possuem intervalo de confiança superior a 99%)"]
[null,"EQUAÇÃO DA LINHA DE BASE ENERGÉTICA"]
[]
[null,"GRAFICO DA LINHA DE BASE ENERGÉTICA"]
[]
[]
[]
[]
[]
[]
[]
[]
[]
[]
[]
[]
[]
[]
[]
[]
[]
[]
[]
[]
[]
[]
[]
[]
[null,"Com a equação da Linha de Base Energética, avalie o consumo futuro de Energia para os próximos 5 anos e estabeleça ações nas variáveis energéticas, que promovem a Eficiência Energética em sua organização."]
[]
[null,"PASSO 3"]
[]
[null,"Indicadores de Desempenho Energético | definir indicadores que demonstram a performance energética da organização"]
[null,"ITEM","Descrição do Indicador",null,null,null,null,null,"Medição do Indicador",null,null,null,null,"Indicador"]
[null,1]
[null,2]
[null,3]
[null,4]
[null,5]
[]
[null,"Objetivo Energético | plano de ação para melhorar o desempenho das variáveis energéticas, promovendo a Eficiência Energética da organização"]
[null,"ITEM","OBJETIVO ENERGÉTICO",null,null,null,null,null,"META ENERGÉTICA",null,null,null,null,"INDICADOR"]
[null,1,null,null,null,null,null,null,null,null,null,null,null,{"$f":"N96","v":0}]
[null,2,null,null,null,null,null,null,null,null,null,null,null,{"$f":"N97","v":0}]
[null,3,null,null,null,null,null,null,null,null,null,null,null,0]
[null,4,null,null,null,null,null,null,null,null,null,null,null,0]
[null,5,null,null,null,null,null,null,null,null,null,null,null,0]
[]
[null,"ITEM","INDICADOR",null,"AÇÕES",null,null,null,null,null,null,"RESPONSÁVEL",null,"PRAZO"]
[null,1,{"$f":"N104","v":0}]
[null,2,{"$f":"N105","v":0}]
[null,3,0]
[null,4,0]
[null,5,0]